[Event "Titled Tuesday Blitz July 18 Late 2023"]
[White "NLLO777"]
[Black "Golubev, Mikhail"]
[BlackFideId "14100983"]
[WhiteElo "2453"]
[BlackElo "2576"]
[Result "0-1"]
[Round "8"]
[TimeControl "180+2"]
[Date "2023.07.18"]
[WhiteClock "0:00:00"]
[BlackClock "0:00:05"]
[Board "64"]

1. d4 {[%clk 0:02:59]}  Nf6 {[%clk 0:02:59]} 2. c4 {[%clk 0:02:59]}  g6 {[%clk 0:03:00]} 3. Nc3 {[%clk 0:02:59]}  Bg7 {[%clk 0:03:00]} 4. e4 {[%clk 0:02:58]}  d6 {[%clk 0:03:00]} 5. h3 {[%clk 0:02:58]}  Nbd7 {[%clk 0:02:59]} 6. Be3 {[%clk 0:02:54]}  e5 {[%clk 0:02:58]} 7. Nf3 {[%clk 0:02:51]}  exd4 {[%clk 0:02:53]} 8. Nxd4 {[%clk 0:02:51]}  O-O {[%clk 0:02:52]} 9. Be2 {[%clk 0:02:50]}  Re8 {[%clk 0:02:48]} 10. Qc2 {[%clk 0:02:49]}  Nc5 {[%clk 0:02:40]} 11. Bf3 {[%clk 0:02:46]}  Nfxe4 {[%clk 0:02:17]} 12. Nxe4 {[%clk 0:02:39]}  Nxe4 {[%clk 0:01:33]} 13. Bxe4 {[%clk 0:02:38]}  Qe7 {[%clk 0:01:29]} 14. Bxg6 {[%clk 0:01:55]}  hxg6 {[%clk 0:01:16]} 15. O-O {[%clk 0:01:53]}  b6 {[%clk 0:01:07]} 16. Rfe1 {[%clk 0:01:51]}  Bb7 {[%clk 0:01:04]} 17. Qd2 {[%clk 0:01:30]}  Qd7 {[%clk 0:00:40]} 18. Bh6 {[%clk 0:01:21]}  Bh8 {[%clk 0:00:39]} 19. Qf4 {[%clk 0:00:58]}  Rxe1+ {[%clk 0:00:33]} 20. Rxe1 {[%clk 0:00:58]}  Re8 {[%clk 0:00:34]} 21. Re3 {[%clk 0:00:50]}  a6 {[%clk 0:00:23]} 22. Bg5 {[%clk 0:00:47]}  Rxe3 {[%clk 0:00:16]} 23. Qxe3 {[%clk 0:00:46]}  c5 {[%clk 0:00:16]} 24. Nf3 {[%clk 0:00:44]}  Bxb2 {[%clk 0:00:13]} 25. Nh2 {[%clk 0:00:40]}  Qe6 {[%clk 0:00:10]} 26. Qd2 {[%clk 0:00:32]}  Qe4 {[%clk 0:00:06]} 27. Nf3 {[%clk 0:00:28]}  Be5 {[%clk 0:00:06]} 28. Be3 {[%clk 0:00:18]}  b5 {[%clk 0:00:06]} 29. cxb5 {[%clk 0:00:18]}  axb5 {[%clk 0:00:07]} 30. Ne1 {[%clk 0:00:16]}  b4 {[%clk 0:00:06]} 31. f3 {[%clk 0:00:15]}  Qd5 {[%clk 0:00:05]} 32. Qe2 {[%clk 0:00:14]}  Bd4 {[%clk 0:00:05]} 33. Kh1 {[%clk 0:00:12]}  Qe5 {[%clk 0:00:05]} 34. Nc2 {[%clk 0:00:12]}  Bxe3 {[%clk 0:00:05]} 35. Nxe3 {[%clk 0:00:11]}  Bd5 {[%clk 0:00:05]} 36. Qd3 {[%clk 0:00:11]}  Be6 {[%clk 0:00:05]} 37. Ng4 {[%clk 0:00:10]}  Qd4 {[%clk 0:00:04]} 38. Qe2 {[%clk 0:00:08]}  c4 {[%clk 0:00:04]} 39. h4 {[%clk 0:00:07]}  Kg7 {[%clk 0:00:04]} 40. Qe1 {[%clk 0:00:04]}  Bxg4 {[%clk 0:00:04]} 41. fxg4 {[%clk 0:00:04]}  c3 {[%clk 0:00:04]} 42. h5 {[%clk 0:00:04]}  Qd2 {[%clk 0:00:04]} 43. Qh4 {[%clk 0:00:03]}  c2 {[%clk 0:00:03]} 44. h6+ {[%clk 0:00:03]}  Kh7 {[%clk 0:00:03]} 45. Qf6 {[%clk 0:00:03]}  c1=Q+ {[%clk 0:00:03]} 46. Kh2 {[%clk 0:00:03]}  Qxh6+ {[%clk 0:00:03]} 47. Kg3 {[%clk 0:00:03]}  Qg7 {[%clk 0:00:03]} 48. Qh4+ {[%clk 0:00:03]}  Kg8 {[%clk 0:00:04]} 49. Qd8+ {[%clk 0:00:03]}  Qf8 {[%clk 0:00:04]} 50. Qh4 {[%clk 0:00:04]}  Qe8 {[%clk 0:00:05]} 51. Kh3 {[%clk 0:00:04]}  Qee3+ {[%clk 0:00:05]} 52. g3 {[%clk 0:00:00]}  Qee1 {[%clk 0:00:05]} 0-1


[Site "https://www.chess.com"]

[Event "Titled Tuesday Blitz July 18 Late 2023"]
[White "Bogaudinov, Rushan"]
[Black "Przybylski, Wojciech"]
[WhiteFideId "4129288"]
[BlackFideId "1117599"]
[WhiteElo "2380"]
[BlackElo "2553"]
[Result "1-0"]
[Round "8"]
[TimeControl "180+2"]
[Date "2023.07.18"]
[WhiteClock "0:00:13"]
[BlackClock "0:00:01"]
[Board "68"]

1. d4 {[%clk 0:02:57]}  Nf6 {[%clk 0:02:57]} 2. Nf3 {[%clk 0:02:57]}  d5 {[%clk 0:02:56]} 3. g3 {[%clk 0:02:57]}  Bf5 {[%clk 0:02:53]} 4. Bg2 {[%clk 0:02:58]}  c6 {[%clk 0:02:53]} 5. O-O {[%clk 0:02:58]}  e6 {[%clk 0:02:53]} 6. c4 {[%clk 0:02:58]}  Nbd7 {[%clk 0:02:52]} 7. Nc3 {[%clk 0:02:58]}  Be7 {[%clk 0:02:52]} 8. b3 {[%clk 0:02:57]}  O-O {[%clk 0:02:49]} 9. Bb2 {[%clk 0:02:57]}  Rb8 {[%clk 0:02:47]} 10. e3 {[%clk 0:02:48]}  b5 {[%clk 0:02:46]} 11. c5 {[%clk 0:02:44]}  b4 {[%clk 0:02:42]} 12. Ne2 {[%clk 0:02:43]}  Be4 {[%clk 0:02:42]} 13. Nf4 {[%clk 0:02:39]}  Qc7 {[%clk 0:02:36]} 14. h4 {[%clk 0:02:33]}  Rfe8 {[%clk 0:02:32]} 15. Re1 {[%clk 0:02:30]}  a5 {[%clk 0:02:21]} 16. Rc1 {[%clk 0:02:29]}  h6 {[%clk 0:02:18]} 17. h5 {[%clk 0:02:20]}  Ng4 {[%clk 0:02:15]} 18. Bh3 {[%clk 0:02:14]}  Bf5 {[%clk 0:02:07]} 19. Bg2 {[%clk 0:01:53]}  e5 {[%clk 0:02:00]} 20. Nxe5 {[%clk 0:01:48]}  Ngxe5 {[%clk 0:01:59]} 21. dxe5 {[%clk 0:01:48]}  Nxe5 {[%clk 0:01:59]} 22. Bxe5 {[%clk 0:01:30]}  Qxe5 {[%clk 0:01:57]} 23. Qd4 {[%clk 0:01:30]}  Bf6 {[%clk 0:01:55]} 24. Qxe5 {[%clk 0:01:19]}  Bxe5 {[%clk 0:01:51]} 25. Ne2 {[%clk 0:01:19]}  a4 {[%clk 0:01:37]} 26. Bf3 {[%clk 0:01:12]}  Bb2 {[%clk 0:01:20]} 27. Rcd1 {[%clk 0:01:08]}  a3 {[%clk 0:00:56]} 28. Nd4 {[%clk 0:01:05]}  Bh7 {[%clk 0:00:47]} 29. Nxc6 {[%clk 0:01:00]}  Rbc8 {[%clk 0:00:45]} 30. Bxd5 {[%clk 0:00:58]}  Bc2 {[%clk 0:00:37]} 31. Rc1 {[%clk 0:00:35]}  Bxc1 {[%clk 0:00:35]} 32. Rxc1 {[%clk 0:00:36]}  Bf5 {[%clk 0:00:32]} 33. Nxb4 {[%clk 0:00:28]}  Re5 {[%clk 0:00:32]} 34. c6 {[%clk 0:00:22]}  Be4 {[%clk 0:00:28]} 35. Bxe4 {[%clk 0:00:20]}  Rxe4 {[%clk 0:00:28]} 36. Nd5 {[%clk 0:00:18]}  Re6 {[%clk 0:00:24]} 37. c7 {[%clk 0:00:17]}  Kf8 {[%clk 0:00:21]} 38. b4 {[%clk 0:00:17]}  Rd6 {[%clk 0:00:18]} 39. e4 {[%clk 0:00:17]}  Ke8 {[%clk 0:00:16]} 40. b5 {[%clk 0:00:16]}  f5 {[%clk 0:00:06]} 41. f3 {[%clk 0:00:16]}  fxe4 {[%clk 0:00:06]} 42. fxe4 {[%clk 0:00:17]}  Rxc7 {[%clk 0:00:03]} 43. Nxc7+ {[%clk 0:00:16]}  Kd7 {[%clk 0:00:02]} 44. Nd5 {[%clk 0:00:16]}  Re6 {[%clk 0:00:03]} 45. Rc4 {[%clk 0:00:15]}  Kd6 {[%clk 0:00:02]} 46. b6 {[%clk 0:00:15]}  Ke5 {[%clk 0:00:02]} 47. b7 {[%clk 0:00:14]}  Re8 {[%clk 0:00:03]} 48. Rc8 {[%clk 0:00:14]}  Rd8 {[%clk 0:00:01]} 49. Rxd8 {[%clk 0:00:13]} 1-0


[Site "https://www.chess.com"]

[Event "Titled Tuesday Blitz July 18 Late 2023"]
[White "Adireddy Arjun"]
[Black "Musovic, Armin"]
[WhiteFideId "25647709"]
[BlackFideId "939935"]
[WhiteElo "2373"]
[BlackElo "2550"]
[Result "0-1"]
[Round "8"]
[TimeControl "180+2"]
[Date "2023.07.18"]
[WhiteClock "0:00:00"]
[BlackClock "0:00:10"]
[Board "69"]

1. Nf3 {[%clk 0:03:00]}  Nf6 {[%clk 0:02:59]} 2. g3 {[%clk 0:02:57]}  g6 {[%clk 0:02:58]} 3. Bg2 {[%clk 0:02:58]}  Bg7 {[%clk 0:02:59]} 4. O-O {[%clk 0:02:59]}  O-O {[%clk 0:03:00]} 5. d4 {[%clk 0:02:57]}  d5 {[%clk 0:03:00]} 6. c4 {[%clk 0:02:56]}  c5 {[%clk 0:03:01]} 7. cxd5 {[%clk 0:02:53]}  cxd4 {[%clk 0:02:50]} 8. Nxd4 {[%clk 0:02:43]}  Nxd5 {[%clk 0:02:45]} 9. Nc2 {[%clk 0:02:30]}  Be6 {[%clk 0:02:28]} 10. Nd4 {[%clk 0:02:18]}  Bg4 {[%clk 0:02:21]} 11. Nb5 {[%clk 0:02:07]}  a6 {[%clk 0:01:54]} 12. Bxd5 {[%clk 0:01:54]}  axb5 {[%clk 0:01:53]} 13. Bxb7 {[%clk 0:01:53]}  Qxd1 {[%clk 0:01:47]} 14. Rxd1 {[%clk 0:01:53]}  Ra7 {[%clk 0:01:48]} 15. Bf3 {[%clk 0:01:51]}  Bxf3 {[%clk 0:01:48]} 16. exf3 {[%clk 0:01:52]}  Nc6 {[%clk 0:01:49]} 17. Nc3 {[%clk 0:01:30]}  b4 {[%clk 0:01:46]} 18. Ne2 {[%clk 0:01:18]}  Rfa8 {[%clk 0:01:42]} 19. a3 {[%clk 0:01:16]}  h5 {[%clk 0:01:30]} 20. Rb1 {[%clk 0:01:01]}  Rb7 {[%clk 0:01:14]} 21. axb4 {[%clk 0:00:51]}  Rxb4 {[%clk 0:01:15]} 22. b3 {[%clk 0:00:46]}  Ra2 {[%clk 0:01:15]} 23. Kf1 {[%clk 0:00:43]}  Ne5 {[%clk 0:01:07]} 24. Ng1 {[%clk 0:00:36]}  Rc2 {[%clk 0:00:54]} 25. Bd2 {[%clk 0:00:25]}  Rb7 {[%clk 0:00:49]} 26. Bf4 {[%clk 0:00:21]}  Nc6 {[%clk 0:00:45]} 27. Ne2 {[%clk 0:00:19]}  e5 {[%clk 0:00:40]} 28. Be3 {[%clk 0:00:19]}  h4 {[%clk 0:00:38]} 29. Rdc1 {[%clk 0:00:09]}  Rxc1+ {[%clk 0:00:33]} 30. Nxc1 {[%clk 0:00:10]}  h3 {[%clk 0:00:29]} 31. Nd3 {[%clk 0:00:07]}  f5 {[%clk 0:00:28]} 32. Ke2 {[%clk 0:00:05]}  Rb5 {[%clk 0:00:25]} 33. b4 {[%clk 0:00:04]}  Bf6 {[%clk 0:00:20]} 34. Bc5 {[%clk 0:00:04]}  Kf7 {[%clk 0:00:16]} 35. Rb3 {[%clk 0:00:04]}  Ke6 {[%clk 0:00:16]} 36. Ra3 {[%clk 0:00:04]}  e4 {[%clk 0:00:16]} 37. fxe4 {[%clk 0:00:05]}  fxe4 {[%clk 0:00:16]} 38. Nf4+ {[%clk 0:00:05]}  Kf5 {[%clk 0:00:16]} 39. Nxh3 {[%clk 0:00:05]}  Nxb4 {[%clk 0:00:16]} 40. Bxb4 {[%clk 0:00:06]}  Rxb4 {[%clk 0:00:17]} 41. Ra5+ {[%clk 0:00:05]}  Kg4 {[%clk 0:00:16]} 42. Nf4 {[%clk 0:00:04]}  Bd4 {[%clk 0:00:15]} 43. Kf1 {[%clk 0:00:03]}  Rb2 {[%clk 0:00:11]} 44. Kg1 {[%clk 0:00:01]}  Bxf2+ {[%clk 0:00:11]} 45. Kh1 {[%clk 0:00:00]}  Kf3 {[%clk 0:00:10]} 0-1


[Site "https://www.chess.com"]

[Event "Titled Tuesday Blitz July 18 Late 2023"]
[White "disciplinedbrat"]
[Black "MFatigue"]
[WhiteElo "2261"]
[BlackElo "2542"]
[Result "1-0"]
[Round "8"]
[TimeControl "180+2"]
[Date "2023.07.18"]
[WhiteClock "0:02:20"]
[BlackClock "0:01:55"]
[Board "70"]

1. g3 {[%clk 0:03:00]}  g6 {[%clk 0:03:00]} 2. Bg2 {[%clk 0:03:01]}  Bg7 {[%clk 0:03:00]} 3. d3 {[%clk 0:02:58]}  e5 {[%clk 0:03:00]} 4. Nd2 {[%clk 0:02:58]}  Nc6 {[%clk 0:03:01]} 5. a3 {[%clk 0:02:57]}  d6 {[%clk 0:03:02]} 6. b4 {[%clk 0:02:54]}  f5 {[%clk 0:03:02]} 7. Bb2 {[%clk 0:02:54]}  Nf6 {[%clk 0:03:02]} 8. e4 {[%clk 0:02:50]}  O-O {[%clk 0:03:01]} 9. exf5 {[%clk 0:02:49]}  Bxf5 {[%clk 0:03:00]} 10. Ne2 {[%clk 0:02:46]}  Qd7 {[%clk 0:03:01]} 11. c4 {[%clk 0:02:46]}  Bh3 {[%clk 0:03:00]} 12. O-O {[%clk 0:02:42]}  Rae8 {[%clk 0:02:56]} 13. Re1 {[%clk 0:02:39]}  Bxg2 {[%clk 0:02:55]} 14. Kxg2 {[%clk 0:02:40]}  e4 {[%clk 0:02:56]} 15. Bxf6 {[%clk 0:02:37]}  Bxf6 {[%clk 0:02:55]} 16. Nxe4 {[%clk 0:02:36]}  Bxa1 {[%clk 0:02:55]} 17. Qxa1 {[%clk 0:02:36]}  Qf7 {[%clk 0:02:47]} 18. Nf4 {[%clk 0:02:33]}  h6 {[%clk 0:02:35]} 19. Nf6+ {[%clk 0:02:31]}  Qxf6 {[%clk 0:02:25]} 20. Qxf6 {[%clk 0:02:32]}  Rxf6 {[%clk 0:02:25]} 21. Rxe8+ {[%clk 0:02:32]}  Kh7 {[%clk 0:02:14]} 22. Rc8 {[%clk 0:02:26]}  Rf7 {[%clk 0:02:13]} 23. Nd5 {[%clk 0:02:26]}  Ne5 {[%clk 0:02:11]} 24. Rxc7 {[%clk 0:02:26]}  Rxc7 {[%clk 0:02:10]} 25. Nxc7 {[%clk 0:02:26]}  Nxd3 {[%clk 0:02:11]} 26. Ne8 {[%clk 0:02:25]}  Ne5 {[%clk 0:02:05]} 27. Nxd6 {[%clk 0:02:24]}  b6 {[%clk 0:02:01]} 28. c5 {[%clk 0:02:20]}  bxc5 {[%clk 0:02:01]} 29. bxc5 {[%clk 0:02:21]}  Kg7 {[%clk 0:02:01]} 30. Nc8 {[%clk 0:02:22]}  a5 {[%clk 0:01:59]} 31. Na7 {[%clk 0:02:19]}  Kf6 {[%clk 0:01:57]} 32. c6 {[%clk 0:02:20]}  Ke7 {[%clk 0:01:55]} 33. c7 {[%clk 0:02:20]} 1-0


[Site "https://www.chess.com"]

[Event "Titled Tuesday Blitz July 18 Late 2023"]
[White "Cordova, Emilio"]
[Black "SicilianPanzer"]
[WhiteFideId "3801497"]
[WhiteElo "2797"]
[BlackElo "2309"]
[Result "1-0"]
[Round "8"]
[TimeControl "180+2"]
[Date "2023.07.18"]
[WhiteClock "0:01:57"]
[BlackClock "0:00:46"]
[Board "71"]

1. d4 {[%clk 0:03:00]}  Nf6 {[%clk 0:02:58]} 2. Bg5 {[%clk 0:03:00]}  d5 {[%clk 0:02:57]} 3. e3 {[%clk 0:02:59]}  Nbd7 {[%clk 0:02:50]} 4. Nf3 {[%clk 0:02:55]}  g6 {[%clk 0:02:49]} 5. c4 {[%clk 0:02:53]}  c5 {[%clk 0:02:42]} 6. Nc3 {[%clk 0:02:52]}  cxd4 {[%clk 0:02:40]} 7. Qxd4 {[%clk 0:02:40]}  dxc4 {[%clk 0:02:22]} 8. Bxc4 {[%clk 0:02:29]}  Bg7 {[%clk 0:02:20]} 9. Rd1 {[%clk 0:02:22]}  O-O {[%clk 0:01:53]} 10. O-O {[%clk 0:01:58]}  Qb6 {[%clk 0:01:39]} 11. Qh4 {[%clk 0:01:57]}  Qxb2 {[%clk 0:01:18]} 12. Na4 {[%clk 0:01:57]}  Qa3 {[%clk 0:00:46]} 13. Rd3 {[%clk 0:01:57]} 1-0


[Site "https://www.chess.com"]

[Event "Titled Tuesday Blitz July 18 Late 2023"]
[White "Shuvalova, Polina"]
[Black "Berezin, Viktor"]
[WhiteFideId "24171760"]
[BlackFideId "14107872"]
[WhiteElo "2645"]
[BlackElo "2512"]
[Result "1-0"]
[Round "8"]
[TimeControl "180+2"]
[Date "2023.07.18"]
[WhiteClock "0:00:28"]
[BlackClock "0:00:10"]
[Board "73"]

1. d4 {[%clk 0:03:00]}  Nf6 {[%clk 0:02:55]} 2. Nf3 {[%clk 0:02:58]}  g6 {[%clk 0:02:55]} 3. c3 {[%clk 0:02:51]}  Bg7 {[%clk 0:02:54]} 4. Nbd2 {[%clk 0:02:51]}  O-O {[%clk 0:02:54]} 5. e4 {[%clk 0:02:51]}  d6 {[%clk 0:02:55]} 6. Bd3 {[%clk 0:02:51]}  Nc6 {[%clk 0:02:55]} 7. O-O {[%clk 0:02:51]}  e5 {[%clk 0:02:56]} 8. Re1 {[%clk 0:02:44]}  Re8 {[%clk 0:02:53]} 9. h3 {[%clk 0:02:44]}  h6 {[%clk 0:02:51]} 10. a3 {[%clk 0:02:41]}  a5 {[%clk 0:02:34]} 11. b3 {[%clk 0:02:29]}  Bd7 {[%clk 0:02:32]} 12. Bb2 {[%clk 0:02:29]}  Nh5 {[%clk 0:02:31]} 13. Bf1 {[%clk 0:02:27]}  Nf4 {[%clk 0:02:30]} 14. Qc2 {[%clk 0:02:22]}  g5 {[%clk 0:02:18]} 15. Rad1 {[%clk 0:02:19]}  h5 {[%clk 0:02:17]} 16. dxe5 {[%clk 0:02:17]}  dxe5 {[%clk 0:02:15]} 17. Nc4 {[%clk 0:01:55]}  g4 {[%clk 0:02:14]} 18. hxg4 {[%clk 0:01:53]}  hxg4 {[%clk 0:02:15]} 19. Nh2 {[%clk 0:01:51]}  Qe7 {[%clk 0:02:01]} 20. Ne3 {[%clk 0:01:46]}  Rad8 {[%clk 0:01:48]} 21. Nhxg4 {[%clk 0:01:43]}  Qg5 {[%clk 0:01:40]} 22. Rxd7 {[%clk 0:01:19]}  Rxd7 {[%clk 0:01:39]} 23. g3 {[%clk 0:01:20]}  Red8 {[%clk 0:01:33]} 24. Bc1 {[%clk 0:01:20]}  Nd3 {[%clk 0:01:30]} 25. Bxd3 {[%clk 0:01:05]}  Rxd3 {[%clk 0:01:30]} 26. Nd5 {[%clk 0:01:03]}  Qxg4 {[%clk 0:01:28]} 27. Qxd3 {[%clk 0:01:02]}  Rd6 {[%clk 0:01:20]} 28. Kg2 {[%clk 0:00:57]}  Kf8 {[%clk 0:01:05]} 29. Qf3 {[%clk 0:00:54]}  Qd7 {[%clk 0:01:03]} 30. Be3 {[%clk 0:00:50]}  b6 {[%clk 0:01:02]} 31. Rh1 {[%clk 0:00:49]}  Ne7 {[%clk 0:01:01]} 32. c4 {[%clk 0:00:48]}  Nxd5 {[%clk 0:00:58]} 33. exd5 {[%clk 0:00:47]}  f5 {[%clk 0:00:50]} 34. Rh5 {[%clk 0:00:44]}  Rf6 {[%clk 0:00:41]} 35. Bg5 {[%clk 0:00:45]}  Rg6 {[%clk 0:00:38]} 36. Bd2 {[%clk 0:00:36]}  f4 {[%clk 0:00:26]} 37. Qe4 {[%clk 0:00:33]}  Qg4 {[%clk 0:00:19]} 38. Qf5+ {[%clk 0:00:33]}  Ke7 {[%clk 0:00:15]} 39. Qxg4 {[%clk 0:00:30]}  Rxg4 {[%clk 0:00:16]} 40. Kf3 {[%clk 0:00:30]}  Rg6 {[%clk 0:00:15]} 41. gxf4 {[%clk 0:00:28]}  exf4 {[%clk 0:00:13]} 42. Bxf4 {[%clk 0:00:29]}  Kd7 {[%clk 0:00:13]} 43. Rh7 {[%clk 0:00:28]}  Kc8 {[%clk 0:00:10]} 44. Ke4 {[%clk 0:00:28]} 1-0


[Site "https://www.chess.com"]

[Event "Titled Tuesday Blitz July 18 Late 2023"]
[White "Velasco, Santiago"]
[Black "Shapiro, Viktor"]
[WhiteFideId "4401328"]
[BlackFideId "4175700"]
[WhiteElo "2563"]
[BlackElo "2493"]
[Result "1/2-1/2"]
[Round "8"]
[TimeControl "180+2"]
[Date "2023.07.18"]
[WhiteClock "0:01:14"]
[BlackClock "0:01:22"]
[Board "75"]

1. d4 {[%clk 0:03:00]}  Nf6 {[%clk 0:02:56]} 2. Nf3 {[%clk 0:03:01]}  c5 {[%clk 0:02:54]} 3. d5 {[%clk 0:03:00]}  e6 {[%clk 0:02:54]} 4. Nc3 {[%clk 0:03:00]}  exd5 {[%clk 0:02:54]} 5. Nxd5 {[%clk 0:03:01]}  Nxd5 {[%clk 0:02:55]} 6. Qxd5 {[%clk 0:03:00]}  d6 {[%clk 0:02:56]} 7. Bf4 {[%clk 0:02:53]}  Nc6 {[%clk 0:02:55]} 8. e4 {[%clk 0:02:52]}  Be6 {[%clk 0:02:55]} 9. Qd2 {[%clk 0:02:52]}  d5 {[%clk 0:02:55]} 10. exd5 {[%clk 0:02:49]}  Qxd5 {[%clk 0:02:55]} 11. Qxd5 {[%clk 0:02:49]}  Bxd5 {[%clk 0:02:56]} 12. O-O-O {[%clk 0:02:49]}  O-O-O {[%clk 0:02:56]} 13. a3 {[%clk 0:02:37]}  Be7 {[%clk 0:02:54]} 14. Bd3 {[%clk 0:02:31]}  Be6 {[%clk 0:02:27]} 15. Ng5 {[%clk 0:02:27]}  Bxg5 {[%clk 0:02:27]} 16. Bxg5 {[%clk 0:02:27]}  Rd5 {[%clk 0:02:25]} 17. Be3 {[%clk 0:02:19]}  Rhd8 {[%clk 0:02:14]} 18. h4 {[%clk 0:02:15]}  h6 {[%clk 0:02:12]} 19. Be4 {[%clk 0:02:10]}  Rxd1+ {[%clk 0:02:10]} 20. Rxd1 {[%clk 0:02:10]}  Rxd1+ {[%clk 0:02:10]} 21. Kxd1 {[%clk 0:02:11]}  Nd4 {[%clk 0:02:06]} 22. b4 {[%clk 0:02:05]}  b6 {[%clk 0:01:55]} 23. c3 {[%clk 0:02:02]}  Nf5 {[%clk 0:01:50]} 24. Bxf5 {[%clk 0:01:58]}  Bxf5 {[%clk 0:01:50]} 25. bxc5 {[%clk 0:01:59]}  bxc5 {[%clk 0:01:51]} 26. Bxc5 {[%clk 0:01:59]}  a6 {[%clk 0:01:49]} 27. Bf8 {[%clk 0:01:59]}  g5 {[%clk 0:01:48]} 28. h5 {[%clk 0:01:42]}  Bg4+ {[%clk 0:01:48]} 29. f3 {[%clk 0:01:42]}  Bxh5 {[%clk 0:01:48]} 30. Bxh6 {[%clk 0:01:42]}  g4 {[%clk 0:01:49]} 31. fxg4 {[%clk 0:01:36]}  Bxg4+ {[%clk 0:01:48]} 32. Kd2 {[%clk 0:01:37]}  Kd7 {[%clk 0:01:48]} 33. Ke3 {[%clk 0:01:37]}  Kc6 {[%clk 0:01:47]} 34. Kd4 {[%clk 0:01:37]}  Kb5 {[%clk 0:01:47]} 35. Bf8 {[%clk 0:01:35]}  Be6 {[%clk 0:01:46]} 36. Bb4 {[%clk 0:01:32]}  a5 {[%clk 0:01:45]} 37. Be7 {[%clk 0:01:31]}  Bb3 {[%clk 0:01:40]} 38. Bd8 {[%clk 0:01:25]}  a4 {[%clk 0:01:40]} 39. Be7 {[%clk 0:01:25]}  Be6 {[%clk 0:01:40]} 40. Bb4 {[%clk 0:01:25]}  Bb3 {[%clk 0:01:40]} 41. Ke5 {[%clk 0:01:25]}  Be6 {[%clk 0:01:40]} 42. Kf4 {[%clk 0:01:25]}  Kc4 {[%clk 0:01:40]} 43. g4 {[%clk 0:01:25]}  Kd3 {[%clk 0:01:32]} 44. g5 {[%clk 0:01:25]}  Ba2 {[%clk 0:01:23]} 45. Ke5 {[%clk 0:01:25]}  Kc4 {[%clk 0:01:20]} 46. Kd6 {[%clk 0:01:21]}  Kb5 {[%clk 0:01:20]} 47. Ke7 {[%clk 0:01:21]}  Bb3 {[%clk 0:01:21]} 48. Kd6 {[%clk 0:01:21]}  Bc4 {[%clk 0:01:21]} 49. Ke5 {[%clk 0:01:21]}  Bb3 {[%clk 0:01:21]} 50. Kd4 {[%clk 0:01:20]}  Bc4 {[%clk 0:01:21]} 51. Be7 {[%clk 0:01:21]}  Bb3 {[%clk 0:01:22]} 52. Bf6 {[%clk 0:01:21]}  Bc4 {[%clk 0:01:22]} 53. Be7 {[%clk 0:01:19]}  Ba2 {[%clk 0:01:22]} 54. Bb4 {[%clk 0:01:20]}  Bc4 {[%clk 0:01:22]} 55. Ke5 {[%clk 0:01:20]}  Ba2 {[%clk 0:01:22]} 56. Kf6 {[%clk 0:01:20]}  Bb3 {[%clk 0:01:22]} 57. Kf5 {[%clk 0:01:16]}  Ba2 {[%clk 0:01:22]} 58. Ke5 {[%clk 0:01:14]}  Bb3 {[%clk 0:01:22]} 1/2-1/2


[Site "https://www.chess.com"]

[Event "Titled Tuesday Blitz July 18 Late 2023"]
[White "Schekachikhin, Maksim"]
[Black "Kleiman, Jake"]
[WhiteFideId "24177830"]
[BlackFideId "2020041"]
[WhiteElo "2535"]
[BlackElo "2492"]
[Result "0-1"]
[Round "8"]
[TimeControl "180+2"]
[Date "2023.07.18"]
[WhiteClock "0:00:32"]
[BlackClock "0:00:18"]
[Board "76"]

1. d4 {[%clk 0:02:57]}  Nf6 {[%clk 0:03:00]} 2. Nf3 {[%clk 0:02:56]}  e6 {[%clk 0:03:00]} 3. e3 {[%clk 0:02:56]}  d5 {[%clk 0:03:00]} 4. Bd3 {[%clk 0:02:56]}  Be7 {[%clk 0:02:59]} 5. O-O {[%clk 0:02:55]}  O-O {[%clk 0:03:00]} 6. Nbd2 {[%clk 0:02:55]}  b6 {[%clk 0:03:00]} 7. b3 {[%clk 0:02:51]}  Bb7 {[%clk 0:02:57]} 8. Bb2 {[%clk 0:02:49]}  c5 {[%clk 0:02:58]} 9. Ne5 {[%clk 0:02:48]}  Ne4 {[%clk 0:02:42]} 10. Bxe4 {[%clk 0:02:30]}  dxe4 {[%clk 0:02:42]} 11. dxc5 {[%clk 0:02:29]}  f6 {[%clk 0:02:28]} 12. c6 {[%clk 0:02:11]}  Ba6 {[%clk 0:02:13]} 13. Nec4 {[%clk 0:02:10]}  b5 {[%clk 0:02:08]} 14. Na3 {[%clk 0:02:10]}  Nxc6 {[%clk 0:02:08]} 15. c4 {[%clk 0:02:08]}  b4 {[%clk 0:01:50]} 16. Nc2 {[%clk 0:02:06]}  Qd3 {[%clk 0:01:39]} 17. Qc1 {[%clk 0:01:57]}  f5 {[%clk 0:01:27]} 18. Rd1 {[%clk 0:01:56]}  Qe2 {[%clk 0:01:27]} 19. Nf1 {[%clk 0:01:53]}  Rad8 {[%clk 0:01:21]} 20. Nd4 {[%clk 0:01:50]}  Nxd4 {[%clk 0:01:21]} 21. Bxd4 {[%clk 0:01:51]}  Qg4 {[%clk 0:01:02]} 22. h3 {[%clk 0:01:45]}  Qg6 {[%clk 0:01:00]} 23. Bxa7 {[%clk 0:01:44]}  e5 {[%clk 0:00:56]} 24. c5 {[%clk 0:01:33]}  Bd3 {[%clk 0:00:47]} 25. Qb2 {[%clk 0:01:30]}  Qe6 {[%clk 0:00:44]} 26. Bb6 {[%clk 0:01:26]}  Rc8 {[%clk 0:00:42]} 27. a3 {[%clk 0:01:25]}  bxa3 {[%clk 0:00:37]} 28. Qxa3 {[%clk 0:01:23]}  f4 {[%clk 0:00:33]} 29. b4 {[%clk 0:01:20]}  f3 {[%clk 0:00:30]} 30. Rxd3 {[%clk 0:01:15]}  exd3 {[%clk 0:00:29]} 31. Qxd3 {[%clk 0:01:16]}  e4 {[%clk 0:00:25]} 32. Qc2 {[%clk 0:01:02]}  fxg2 {[%clk 0:00:25]} 33. Kxg2 {[%clk 0:01:02]}  Kh8 {[%clk 0:00:24]} 34. Ng3 {[%clk 0:01:00]}  Rf3 {[%clk 0:00:22]} 35. Rf1 {[%clk 0:00:50]}  Rcf8 {[%clk 0:00:17]} 36. b5 {[%clk 0:00:45]}  h5 {[%clk 0:00:17]} 37. c6 {[%clk 0:00:38]}  h4 {[%clk 0:00:18]} 38. Nxe4 {[%clk 0:00:38]}  Qxh3+ {[%clk 0:00:17]} 39. Kg1 {[%clk 0:00:32]}  Qg4+ {[%clk 0:00:18]} 0-1


[Site "https://www.chess.com"]